bitfinex/quotes_ETHUSD_20250517
["timestamp","ask_amount","ask_price","bid_price","bid_amount"]
[1747506970166,8.0,2476.7,2476.3,3.33513235]
[1747506970339,8.0,2476.7,2476.3,7.37327473]
[1747506970659,8.0,2476.7,2476.4,3.73486308]
[1747506970863,0.38472809,2477.0,2476.7,4.03748428]
[1747506971038,4.03698058,2477.1,2476.8,8.316]
[1747506971364,4.03697872,2477.1,2476.8,8.316]
[1747506971569,4.03710792,2477.1,2476.8,8.316]
[1747506971739,4.03718417,2477.0,2476.8,8.316]
[1747506972462,0.30951804,2477.4,2476.8,8.316]
[1747506972661,12.03688768,2477.2,2476.8,8.316]
[1747506972864,4.03698985,2477.1,2476.8,8.316]
[1747506973067,8.0,2477.2,2476.8,8.316]
[1747506973574,8.0,2477.4,2476.9,4.03722655]
[1747506973877,8.0,2477.2,2476.8,9.62830582]
[1747506974043,4.03671326,2477.3,2476.8,9.62830582]
[1747506974248,4.03671326,2477.3,2476.8,13.66568303]
[1747506974548,4.03671326,2477.3,2476.8,9.62830582]
[1747506974549,12.03671326,2477.3,2476.8,9.62830582]
[1747506974765,4.03685409,2477.2,2476.8,9.62830582]
[1747506974931,4.03704618,2477.1,2476.8,8.316]
[1747506975133,8.0,2477.3,2476.8,8.316]
[1747506975134,8.0,2477.3,2476.8,12.35339148]
[1747506975335,4.03690011,2477.2,2476.8,8.316]
[1747506975542,4.03720098,2477.0,2476.8,8.316]
[1747506975772,4.03729691,2477.0,2476.8,8.314]
[1747506976139,4.0715617,2477.0,2476.8,8.314]
[1747506976335,4.03730469,2476.9,2476.8,8.314]
[1747506976672,4.03730469,2476.9,2476.6,8.314]
[1747506976673,4.03769748,2476.7,2476.6,8.314]
[1747506976872,4.03750811,2476.8,2476.7,0.00613599]
[1747506979471,12.03750811,2476.8,2476.7,0.00613599]
[1747506981994,12.41290811,2476.8,2476.7,0.00613599]
[1747506982865,4.03831686,2476.3,2476.0,0.00613599]
[1747506983177,4.03805073,2476.5,2476.0,4.04479483]
[1747506983472,4.03795679,2476.5,2476.0,4.04479483]
[1747506983698,12.03780354,2476.6,2476.2,4.038371]
[1747506983699,8.0,2476.6,2476.2,4.038371]
[1747506983839,4.03798727,2476.5,2476.3,0.7756]
[1747506984345,4.03798727,2476.5,2476.3,9.0896]
[1747506984878,4.03811985,2476.4,2476.3,8.314]
[1747506985185,4.03813989,2476.4,2476.2,8.314]
[1747506985863,4.03813989,2476.4,2476.3,0.00613599]
[1747506986066,4.03373102,2476.4,2476.3,0.00613599]
[1747506987146,4.06799581,2476.4,2476.3,0.00613599]
[1747506987691,12.06799581,2476.4,2476.3,0.00613599]
[1747506987869,12.03373102,2476.4,2476.3,0.00613599]
[1747506988044,20.28273102,2476.4,2476.3,0.00613599]
[1747506988779,4.03877221,2476.0,2475.9,0.00613599]
[1747506990017,12.03867779,2476.1,2475.9,0.00613599]
[1747506990569,4.03877221,2476.0,2475.9,0.00613599]
[1747506991679,12.073037,2476.0,2475.9,0.00613599]
[1747506991878,4.03942478,2475.6,2475.5,0.00613599]
[1747506992270,4.03934811,2475.7,2475.5,0.00613599]
[1747506992584,4.03942478,2475.6,2475.5,0.00613599]
[1747506992943,4.03917481,2475.8,2475.5,0.00613599]
[1747506993784,4.03927795,2475.7,2475.5,0.00613599]
[1747506994379,8.55752648,2475.9,2475.5,0.00613599]
[1747506994380,4.34750763,2475.9,2475.5,0.00613599]
[1747506994581,4.03898115,2475.9,2475.5,4.04572228]
[1747506994779,12.03898115,2475.9,2475.5,0.00613599]
[1747506994983,8.0,2475.8,2475.5,4.04571898]
[1747506995353,12.03913879,2475.8,2475.5,0.00613599]
[1747506995654,12.03252148,2475.8,2475.5,0.00613599]
[1747506995980,4.03933268,2475.7,2475.5,0.00613599]
[1747506998406,12.03257842,2475.8,2475.5,0.00613599]
[1747506998607,4.03926282,2475.7,2475.5,0.00613599]
[1747506999719,7.99338269,2475.8,2475.5,0.00613599]
[1747506999877,4.03938692,2475.7,2475.5,0.00613599]
[1747507000531,4.03942478,2475.6,2475.5,0.00613599]
[1747507000820,4.03938692,2475.7,2475.3,8.25513599]
[1747507000821,4.03975115,2475.4,2475.3,8.25513599]
[1747507002103,4.03969716,2475.5,2475.3,8.25513599]
[1747507002317,4.03921494,2475.8,2475.3,9.81075959]
[1747507002474,4.03926162,2475.7,2475.3,9.81075959]
[1747507002675,8.0,2475.5,2475.3,9.81075959]
[1747507004087,4.03958849,2475.5,2475.3,9.81075959]
[1747507004794,4.03975115,2475.4,2475.3,0.00613599]
[1747507004990,12.03129265,2475.4,2475.3,0.00613599]
[1747507005779,12.40669265,2475.4,2475.3,0.00613599]
[1747507007915,12.95669265,2475.4,2475.3,0.00613599]
[1747507010796,20.65469265,2475.4,2475.3,0.00613599]
[1747507011297,12.03129265,2475.4,2475.3,0.00613599]
[1747507013033,12.40669265,2475.4,2475.3,0.00613599]
[1747507014196,12.4015413,2475.4,2475.3,0.00613599]
[1747507014813,12.0261413,2475.4,2475.3,0.00613599]
[1747507016924,20.2731413,2475.4,2475.3,0.00613599]
[1747507018014,21.1985413,2475.4,2475.3,0.00613599]
[1747507018854,21.58409861,2475.4,2475.3,0.00613599]
[1747507019196,12.78709861,2475.4,2475.3,0.00613599]
[1747507019391,12.41169861,2475.4,2475.3,0.00613599]
[1747507023610,12.40519238,2475.4,2475.3,0.00613599]
[1747507027566,0.38555731,2475.4,2475.3,0.65974959]
[1747507027754,4.42530846,2475.4,2475.3,0.65974959]
[1747507027959,12.42530846,2475.4,2475.3,0.65974959]
[1747507029218,12.42530846,2475.4,2475.3,0.00613599]
[1747507031525,21.04370846,2475.4,2475.3,0.00613599]
[1747507032924,21.03595842,2475.4,2475.3,0.00613599]
[1747507033125,20.66055842,2475.4,2475.3,0.00613599]
[1747507033353,21.14212769,2475.4,2475.3,0.00613599]
[1747507034047,12.89912769,2475.4,2475.3,0.00613599]
[1747507034339,21.14112769,2475.4,2475.3,0.00613599]
[1747507035381,20.65955842,2475.4,2475.3,0.00613599]
[1747507037777,12.41755842,2475.4,2475.3,0.00613599]
[1747507037983,20.65855842,2475.4,2475.3,0.00613599]
[1747507038183,12.41755842,2475.4,2475.3,0.00613599]
[1747507038481,20.65855842,2475.4,2475.3,0.00613599]
[1747507041485,21.58395842,2475.4,2475.3,0.00613599]
[1747507041654,34.06995842,2475.4,2475.3,0.00613599]
[1747507041857,44.11995842,2475.4,2475.3,0.00613599]
[1747507042187,65.53583042,2475.4,2475.3,0.00613599]
[1747507042385,65.5307291,2475.4,2475.3,0.00613599]
[1747507042605,44.1148571,2475.4,2475.3,0.00613599]
[1747507042799,59.4443451,2475.4,2475.3,0.00613599]
[1747507044188,39.8708571,2475.4,2475.3,0.00613599]
[1747507044485,42.0021571,2475.4,2475.3,0.00613599]
[1747507045052,25.5191571,2475.4,2475.3,0.00613599]
[1747507045289,39.8728571,2475.4,2475.3,0.00613599]
[1747507045721,23.3878571,2475.4,2475.3,0.00613599]
[1747507045885,39.8718571,2475.4,2475.3,0.00613599]
[1747507047349,42.7989401,2475.4,2475.3,0.00613599]
[1747507050808,42.2688071,2475.4,2475.3,0.00613599]
[1747507051749,42.26253602,2475.4,2475.3,0.00613599]
[1747507052550,42.90563197,2475.4,2475.3,0.00613599]
[1747507052798,40.50768197,2475.4,2475.3,0.00613599]
[1747507056403,15.09928197,2475.4,2475.3,0.00613599]
[1747507056613,13.28528197,2475.4,2475.3,0.65974959]
[1747507056899,21.28528197,2475.4,2475.3,0.00613599]
[1747507057306,21.28428197,2475.4,2475.3,0.00613599]
[1747507057867,16.04928197,2475.4,2475.3,0.00613599]
[1747507058482,15.40618602,2475.4,2475.3,0.00613599]
[1747507058869,3.36643487,2475.4,2475.3,0.81543599]
[1747507059208,7.40618602,2475.4,2475.3,1.54997959]
[1747507059402,4.40618602,2475.4,2475.3,1.54997959]
[1747507059613,4.03975115,2475.4,2475.3,1.54997959]
[1747507060713,4.07401594,2475.4,2475.3,0.81543599]
[1747507061211,4.03161886,2475.4,2475.3,0.81543599]
[1747507062219,7.03161886,2475.4,2475.3,0.81543599]
[1747507063020,3.0,2475.4,2475.3,0.81543599]
[1747507064282,7.03975115,2475.4,2475.3,0.81543599]
[1747507065018,3.0,2475.4,2475.3,1.54997959]
[1747507065533,3.0,2475.4,2475.3,13.86428973]
[1747507065759,4.52153691,2476.0,2475.3,13.86428973]
[1747507065760,12.03911587,2475.8,2475.5,0.826]
[1747507065906,8.0,2475.8,2475.5,0.826]
[1747507066088,8.0,2475.8,2475.6,0.48656818]
[1747507066519,4.52143545,2476.0,2475.6,0.48656818]
[1747507066725,12.03909803,2475.9,2475.5,0.826]
[1747507066925,12.03902703,2475.9,2475.6,0.00613599]
[1747507067895,4.03911374,2475.8,2475.6,0.00613599]
[1747507069429,12.03902841,2475.9,2475.6,0.00613599]
[1747507069927,4.03911854,2475.8,2475.6,0.00613599]
[1747507070106,4.03911854,2475.8,2475.6,0.49331723]
[1747507071732,4.03926162,2475.7,2475.6,0.49331723]
[1747507071939,12.03926162,2475.7,2475.6,0.00613599]
[1747507072833,14.03926162,2475.7,2475.6,0.00613599]
[1747507074833,10.0,2475.7,2475.6,0.00613599]
[1747507075341,14.03926162,2475.7,2475.6,0.00613599]
[1747507075651,14.03334777,2475.7,2475.6,0.00613599]
[1747507076147,4.03975115,2475.4,2475.3,0.00613599]
[1747507077547,12.03975115,2475.4,2475.3,0.00613599]
[1747507079628,8.0,2475.4,2475.3,0.79823599]
[1747507080246,12.03975115,2475.4,2475.3,0.79823599]
[1747507081317,12.03975115,2475.4,2475.3,0.00613599]
[1747507081520,12.41515115,2475.4,2475.3,0.00613599]
[1747507082243,20.63515115,2475.4,2475.3,0.00613599]
[1747507082441,20.25975115,2475.4,2475.3,0.00613599]
[1747507082644,12.03975115,2475.4,2475.3,0.00613599]
[1747507082838,20.25975115,2475.4,2475.3,0.00613599]
[1747507083551,20.64539769,2475.4,2475.3,0.00613599]
[1747507084918,29.79439923,2475.4,2475.3,0.00613599]
[1747507085125,43.69519723,2475.4,2475.3,0.00613599]
[1747507085334,53.22316923,2475.4,2475.3,0.00613599]
[1747507085670,50.69336923,2475.4,2475.3,0.00613599]
[1747507086439,42.85035523,2475.4,2475.3,0.00613599]
[1747507087050,43.49345118,2475.4,2475.3,0.00613599]
[1747507089279,24.03549518,2475.4,2475.3,0.00613599]
[1747507089441,23.71089364,2475.4,2475.3,0.00613599]
[1747507089647,31.71089364,2475.4,2475.3,0.00613599]
[1747507090252,34.39268069,2475.4,2475.3,0.00613599]
[1747507090460,23.40079769,2475.4,2475.3,0.00613599]
[1747507090686,31.61879769,2475.4,2475.3,0.00613599]
[1747507093595,23.40079769,2475.4,2475.3,0.00613599]
[1747507093901,31.61679769,2475.4,2475.3,0.00613599]
[1747507094199,31.60992222,2475.4,2475.3,0.00613599]
[1747507094799,31.23452222,2475.4,2475.3,0.00613599]
[1747507094978,22.68352222,2475.4,2475.3,0.00613599]
[1747507095180,31.23352222,2475.4,2475.3,0.00613599]
[1747507097582,54.80424722,2475.4,2475.3,0.00613599]
[1747507098617,49.73669322,2475.4,2475.3,0.00613599]
[1747507098815,50.21851049,2475.4,2475.3,0.00613599]
[1747507099006,40.30873949,2475.4,2475.3,0.00613599]
[1747507099208,47.84893949,2475.4,2475.3,0.00613599]
[1747507099407,40.30873949,2475.4,2475.3,0.00613599]
[1747507101593,39.82692222,2475.4,2475.3,0.00613599]
[1747507103078,47.46312222,2475.4,2475.3,0.00613599]
[1747507103283,49.42242848,2475.4,2475.3,0.00613599]
[1747507103512,41.78622848,2475.4,2475.3,0.00613599]
[1747507103718,41.7784274,2475.4,2475.3,0.00613599]
[1747507104407,42.42152335,2475.4,2475.3,0.00613599]
[1747507104608,50.66194335,2475.4,2475.3,0.00613599]
[1747507104825,42.42152335,2475.4,2475.3,0.00613599]
[1747507105400,25.98852335,2475.4,2475.3,0.00613599]
[1747507105617,23.31381709,2475.4,2475.3,0.00613599]
[1747507105789,31.31381709,2475.4,2475.3,0.00613599]
[1747507106126,23.31381709,2475.4,2475.3,0.00613599]
[1747507106327,31.86381709,2475.4,2475.3,0.00613599]
[1747507106704,15.10381709,2475.4,2475.3,0.00613599]
[1747507106913,1.02874249,2475.4,2475.3,5.52766394]
[1747507107116,1.02874249,2475.4,2475.3,1.48774959]
[1747507107700,8.0,2475.6,2475.3,1.48774959]
[1747507107908,12.03950287,2475.6,2475.3,1.48774959]
[1747507108631,12.03950287,2475.6,2475.4,0.828]
[1747507109163,2.0,2475.7,2475.6,0.814]
[1747507109337,2.0,2475.7,2475.6,1.29998225]
[1747507109841,2.0,2475.7,2475.6,0.814]
[1747507112034,1.99386401,2475.7,2475.6,0.814]
[1747507112246,6.03312563,2475.7,2475.6,0.814]
[1747507112540,4.03958796,2475.5,2475.4,0.814]
[1747507112703,12.03958796,2475.5,2475.4,0.814]
[1747507113303,4.03991435,2475.3,2475.2,6.53]
[1747507113510,12.07417914,2475.3,2475.2,6.53]
[1747507113753,12.03991435,2475.3,2475.2,6.53]
[1747507114237,12.42564076,2475.3,2475.2,6.53]
[1747507114759,8.38572641,2475.3,2475.2,7.3416]
[1747507115054,8.38572641,2475.3,2475.2,7.9946]
[1747507115424,8.0,2475.3,2475.2,7.9946]
[1747507116858,12.03991435,2475.3,2475.2,7.9946]
[1747507118657,8.0,2475.3,2475.2,7.9946]
[1747507121162,8.0,2475.3,2475.2,7.3416]
[1747507121163,12.03991435,2475.3,2475.2,7.3416]
[1747507121342,12.03991435,2475.3,2475.2,6.53]
[1747507122434,12.03375434,2475.3,2475.2,6.53]
[1747507123970,1.99386401,2475.7,2475.3,0.7917]
[1747507124260,1.99386401,2475.7,2475.3,1.52387]
[1747507124261,4.03967908,2475.5,2475.3,1.52387]
[1747507125263,4.03975115,2475.4,2475.3,1.52387]
[1747507125473,12.03991435,2475.3,2475.2,6.53]
[1747507131291,8.0,2475.3,2475.2,6.53]
[1747507131493,12.03991435,2475.3,2475.2,6.53]
[1747507131790,12.031686,2475.3,2475.2,6.53]
[1747507132577,12.957086,2475.3,2475.2,6.53]
[1747507133486,31.65738029,2475.3,2475.2,6.53]
[1747507133694,30.00409929,2475.3,2475.2,6.53]
[1747507134790,33.48712996,2475.3,2475.2,6.53]
[1747507135286,20.58881496,2475.3,2475.2,6.53]
[1747507135756,30.63881496,2475.3,2475.2,6.53]
[1747507136391,26.87643309,2475.3,2475.2,6.53]
[1747507136562,43.26643309,2475.3,2475.2,6.53]
[1747507136961,25.95103309,2475.3,2475.2,6.53]
[1747507137158,34.14003309,2475.3,2475.2,6.53]
[1747507137691,25.46800242,2475.3,2475.2,6.53]
[1747507137986,25.46800242,2475.3,2475.2,7.9351]
[1747507137987,7.42623077,2475.3,2475.2,7.9351]
[1747507138192,15.42623077,2475.3,2475.2,7.2821]
[1747507138689,15.03991435,2475.3,2475.2,7.2821]
[1747507139688,15.03991435,2475.3,2475.2,6.53]
[1747507142283,15.42634127,2475.3,2475.2,6.53]
[1747507145693,15.97634127,2475.3,2475.2,6.53]
[1747507147411,16.45937194,2475.3,2475.2,6.53]
[1747507148220,15.90937194,2475.3,2475.2,6.53]
[1747507148419,24.09137194,2475.3,2475.2,6.53]
[1747507149924,23.60834127,2475.3,2475.2,6.53]
[1747507150516,23.6025525,2475.3,2475.2,6.53]
[1747507151332,24.5279525,2475.3,2475.2,6.53]
[1747507152332,25.01098317,2475.3,2475.2,6.53]
[1747507153544,33.19198317,2475.3,2475.2,6.53]
[1747507154626,47.47408217,2475.3,2475.2,6.53]
[1747507154809,45.40288317,2475.3,2475.2,6.53]
[1747507155015,44.9198525,2475.3,2475.2,6.53]
[1747507156846,54.9698525,2475.3,2475.2,6.53]
[1747507157353,56.92924344,2475.3,2475.2,6.53]
[1747507158256,44.71234344,2475.3,2475.2,6.53]
[1747507159516,28.35534344,2475.3,2475.2,6.53]
[1747507159730,44.71234344,2475.3,2475.2,6.53]
[1747507159933,44.70593727,2475.3,2475.2,6.53]
[1747507160351,17.46414633,2475.3,2475.2,7.3507]
[1747507160558,17.46414633,2475.3,2475.2,8.08577]
[1747507160746,14.47634127,2475.3,2475.2,8.08577]
[1747507161145,4.03991435,2475.3,2475.2,8.08577]
[1747507161346,12.03991435,2475.3,2475.2,8.08577]
[1747507162227,8.0,2475.3,2475.2,8.08577]
[1747507162427,4.03967468,2475.5,2475.2,7.26507]
[1747507162665,4.03958796,2475.5,2475.4,0.8207]
[1747507162967,12.03958796,2475.5,2475.4,0.8207]
[1747507163961,8.0,2475.5,2475.4,0.8207]
[1747507164368,12.03958796,2475.5,2475.4,0.8207]
[1747507164548,8.0,2475.5,2475.4,0.8207]
[1747507164866,8.0,2475.5,2475.4,1.74232997]
[1747507166482,8.0,2475.7,2475.5,0.7974]
[1747507166655,8.0,2475.7,2475.5,8.9774]
[1747507166656,4.03942478,2475.6,2475.5,8.9774]
[1747507166851,12.03942478,2475.6,2475.5,8.9774]
[1747507167055,12.03942478,2475.6,2475.5,10.08035597]
[1747507167880,12.03942478,2475.6,2475.5,0.7974]
[1747507169150,12.03370706,2475.6,2475.5,0.7974]
[1747507171259,8.0,2475.6,2475.5,0.7974]
[1747507171448,8.0,2475.8,2475.5,0.7974]
[1747507171851,8.0,2475.8,2475.5,7.3274]
[1747507172062,8.0,2475.8,2475.6,1.13671103]
[1747507172286,12.03916622,2475.8,2475.6,1.13671103]
[1747507177958,8.0,2475.8,2475.6,1.13671103]
[1747507178180,10.34569316,2476.3,2475.7,0.7876]
[1747507178377,8.0,2475.9,2475.7,7.3176]
[1747507178575,16.16,2476.2,2475.7,7.3176]
[1747507178576,12.19850486,2476.2,2475.8,0.8454311]
[1747507178789,12.19832745,2476.3,2476.2,0.81738938]
[1747507178986,20.19832745,2476.3,2476.2,0.81738938]
[1747507179175,12.03832745,2476.3,2476.2,0.81738938]
[1747507179375,12.03832745,2476.3,2476.2,0.00518938]
[1747507179581,12.41372745,2476.3,2476.2,0.00518938]
[1747507180294,12.96372745,2476.3,2476.2,0.00518938]
[1747507180612,42.90584945,2476.3,2476.2,0.00518938]
[1747507180768,23.01372745,2476.3,2476.2,0.00518938]
[1747507180968,26.28472745,2476.3,2476.2,0.00518938]
[1747507181500,23.01372745,2476.3,2476.2,0.00518938]
[1747507181699,25.18372745,2476.3,2476.2,0.00518938]
[1747507182599,23.01372745,2476.3,2476.2,0.00518938]
[1747507183397,25.39072745,2476.3,2476.2,0.00518938]
[1747507184401,29.64372745,2476.3,2476.2,0.00518938]
[1747507184567,16.72377981,2475.9,2475.8,6.53]
[1747507184773,47.93361481,2475.9,2475.8,6.53]
[1747507184994,46.86168281,2475.9,2475.8,6.53]
[1747507185200,44.91454281,2475.9,2475.8,6.53]
[1747507185401,43.11406629,2475.9,2475.8,6.53]
[1747507185700,31.23630329,2475.9,2475.8,6.53]
[1747507186196,26.43080029,2475.9,2475.8,6.53]
[1747507186398,31.23630329,2475.9,2475.8,6.53]
[1747507187282,33.03785397,2475.9,2475.8,6.53]
[1747507187481,35.53720397,2475.9,2475.8,6.53]
[1747507187801,32.48685397,2475.9,2475.8,6.53]
[1747507187999,24.48685397,2475.9,2475.8,6.53]
[1747507188206,33.0306049,2475.9,2475.8,6.53]
[1747507189699,35.4563049,2475.9,2475.8,6.53]
[1747507189905,45.5063049,2475.9,2475.8,6.53]
[1747507191118,43.0786049,2475.9,2475.8,6.53]
[1747507191419,45.5048049,2475.9,2475.8,6.53]
[1747507192315,46.14812367,2475.9,2475.8,6.53]
[1747507193736,16.35075943,2475.1,2475.0,0.00529645]
[1747507193881,20.74124079,2475.1,2475.0,0.00529645]
[1747507194505,21.0405064,2475.1,2475.0,0.00529645]
[1747507194717,21.0395064,2475.1,2475.0,0.00529645]
[1747507194890,20.19024079,2475.1,2475.0,0.00529645]
[1747507195095,20.19024079,2475.1,2475.0,0.80609645]
[1747507195300,12.04024079,2475.1,2475.0,0.80609645]
[1747507195498,0.48266965,2475.6,2475.0,0.80609645]
[1747507195710,8.15,2475.5,2475.0,0.80609645]
[1747507195910,4.04024079,2475.1,2475.0,1.7025061]
[1747507196229,4.04024079,2475.1,2475.0,0.80609645]
[1747507196430,12.04024079,2475.1,2475.0,0.80609645]
[1747507197434,12.03398472,2475.1,2475.0,0.80609645]
[1747507197823,12.03398472,2475.1,2475.0,0.00529645]
[1747507199103,12.58398472,2475.1,2475.0,0.00529645]
[1747507202045,16.34450336,2475.1,2475.0,0.00529645]
[1747507202907,26.39450336,2475.1,2475.0,0.00529645]
[1747507203125,35.88053936,2475.1,2475.0,0.00529645]
[1747507204124,40.13353936,2475.1,2475.0,0.00529645]
[1747507204523,8.55,2475.0,2473.7,0.7882]
[1747507204856,8.0,2473.8,2473.7,0.7882]
[1747507205042,4.04129995,2474.5,2474.1,0.7882]
[1747507205247,0.48266965,2474.7,2474.2,0.7882]
[1747507205559,4.04138839,2474.4,2474.2,0.7882]
[1747507205759,4.0415471,2474.3,2474.2,0.7882]
[1747507205962,4.04141347,2474.4,2474.2,0.7882]
[1747507206457,4.04141347,2474.4,2474.2,1.68292]
[1747507206659,4.0415471,2474.3,2474.2,1.68292]
[1747507206828,4.03492679,2474.3,2474.2,1.68292]
[1747507207333,12.0415471,2474.3,2474.2,0.7882]
[1747507207545,4.04241639,2473.8,2473.3,4.04309237]
[1747507207747,8.0,2473.9,2473.4,8.16]
[1747507207933,4.04277059,2473.6,2473.4,8.16]
[1747507208262,4.04257281,2473.7,2473.5,0.7882]
[1747507211457,0.55,2474.2,2473.7,4.7985366]
[1747507211458,4.04180126,2474.2,2473.7,4.7985366]
[1747507211661,12.04187426,2474.1,2473.8,0.7561]
[1747507212526,4.41629486,2474.7,2473.9,0.7561]
[1747507212734,8.0,2474.3,2474.0,0.7561]
[1747507212940,4.04187381,2474.1,2474.0,0.7561]
[1747507213870,4.0417336,2474.2,2474.0,0.7561]
[1747507214042,12.04099778,2474.7,2474.0,0.7561]
[1747507214043,12.04165902,2474.3,2474.0,0.7561]
[1747507215764,4.04187381,2474.1,2474.0,2.05013867]
[1747507215928,4.04187381,2474.1,2474.0,0.7561]
[1747507216346,4.03424785,2474.1,2474.0,0.7561]
[1747507216549,4.04220057,2473.9,2473.8,8.9174]
[1747507219257,4.04220057,2473.9,2473.8,0.7754]
[1747507220070,12.04210502,2474.0,2473.8,0.7754]
[1747507220370,4.04220057,2473.9,2473.8,0.7754]
[1747507222679,4.04269081,2473.6,2473.5,8.143]
[1747507223286,4.04263392,2473.7,2473.5,8.9314]
[1747507223797,4.04263392,2473.7,2473.5,9.82454]
[1747507225096,4.04269081,2473.6,2473.5,9.82454]
[1747507225277,4.04262417,2473.7,2473.5,9.82454]
[1747507225451,4.04242971,2473.8,2473.5,9.82454]
[1747507225657,4.04259041,2473.7,2473.5,9.82454]
[1747507225871,16.137,2474.0,2473.5,1.68154]
[1747507226178,4.04265038,2473.7,2473.5,0.7884]
[1747507226347,4.04269081,2473.6,2473.5,0.7884]
[1747507227474,4.04292907,2473.5,2473.2,0.7756]
[1747507227677,4.04277472,2473.6,2473.2,0.7756]
[1747507228347,4.042988,2473.5,2473.2,0.7756]
[1747507228665,4.04290629,2473.5,2473.3,1.29620995]
[1747507228860,12.17678804,2473.6,2473.2,4.81894248]
[1747507229785,12.17678804,2473.6,2473.2,0.7756]
[1747507230281,8.134,2473.6,2473.2,0.7756]
[1747507230479,12.17682811,2473.6,2473.2,0.7756]
[1747507230982,4.04318117,2473.3,2473.2,0.7756]
[1747507232483,8.0,2473.5,2473.2,1.2428227]
[1747507232683,10.05,2473.9,2473.2,5.28602936]
[1747507232884,16.131,2473.7,2473.3,0.813]
[1747507233181,20.17355835,2473.7,2473.3,0.813]
[1747507234181,4.04236397,2473.8,2473.4,0.783]
[1747507234182,20.17339185,2473.8,2473.4,0.783]
[1747507234394,16.131,2473.8,2473.5,0.48260819]
[1747507234581,16.131,2473.8,2473.4,0.783]
[1747507234582,4.04252738,2473.7,2473.4,0.783]
[1747507236992,4.0428424,2473.6,2473.4,0.783]
[1747507237184,4.04285425,2473.5,2473.4,0.783]
[1747507237981,4.04272286,2473.6,2473.4,0.783]
[1747507238296,4.04261916,2473.7,2473.4,0.783]
[1747507238297,4.04285425,2473.5,2473.4,0.783]
[1747507239317,4.04318117,2473.3,2473.0,18.235]
[1747507239465,4.04318117,2473.3,2473.0,26.379]
[1747507239664,4.04285425,2473.5,2473.1,2.6379]
[1747507239893,4.04326171,2473.3,2473.1,2.6379]
[1747507240719,4.04334465,2473.2,2473.1,2.6379]
[1747507241229,4.0432668,2473.3,2473.1,2.6379]
[1747507242007,4.0432668,2473.3,2473.0,8.927]
[1747507242523,4.0433835,2473.2,2473.0,8.927]
[1747507242712,4.04350814,2473.1,2473.0,8.927]
[1747507243524,4.04343682,2473.2,2473.0,8.927]
[1747507244019,4.04350814,2473.1,2473.0,8.927]
[1747507246709,4.04341069,2473.2,2473.0,8.927]
[1747507247018,4.04341069,2473.2,2473.0,10.22409898]
[1747507247200,4.04327845,2473.3,2473.0,10.22409898]
[1747507247402,4.04336117,2473.2,2473.0,10.22409898]
[1747507250049,0.3754,2473.9,2473.0,9.44109898]
[1747507250329,4.0427615,2473.6,2473.1,4.85072195]
[1747507250501,4.04286774,2473.5,2473.2,1.83354435]
[1747507256662,4.04278336,2473.6,2473.2,1.83354435]
[1747507257342,4.04272061,2473.6,2473.2,4.04330192]
[1747507257544,8.0,2473.6,2473.3,0.7967]
[1747507257714,8.0,2474.1,2473.5,0.7967]
[1747507258051,5.64412669,2474.2,2473.5,0.7967]
[1747507258052,4.04253976,2473.7,2473.5,0.7967]
[1747507260048,4.04243861,2473.8,2473.5,0.7967]
[1747507260254,4.04243861,2473.8,2473.5,1.28067921]
[1747507260655,4.04244129,2473.8,2473.5,1.28067921]
[1747507260949,4.04294995,2473.5,2473.1,0.7648]
[1747507261445,4.04294995,2473.5,2473.1,4.80830019]
[1747507261650,4.04278254,2473.6,2473.1,4.80830019]
[1747507261853,4.04287504,2473.5,2473.1,4.80830019]
[1747507262848,4.04278254,2473.6,2473.2,4.04331763]
[1747507263049,8.0,2473.9,2473.4,4.04299575]
[1747507263220,12.15243638,2473.8,2473.4,0.7648]
[1747507263632,12.15243638,2473.8,2473.4,4.80778597]
[1747507263854,4.04243638,2473.8,2473.4,4.80778597]
[1747507264055,4.04243638,2473.8,2473.5,0.8850907]
[1747507264453,12.04226543,2473.9,2473.5,0.8850907]
[1747507264757,4.04228848,2473.9,2473.5,4.92792578]
[1747507264955,4.0421688,2474.0,2473.6,4.04268131]
[1747507265166,4.0421688,2474.0,2473.7,0.8188]
[1747507269483,8.0,2474.1,2473.8,4.04226868]
[1747507270380,5.16145704,2474.2,2474.0,0.8188]
[1747507270792,5.16145704,2474.2,2474.0,4.860756]
[1747507270997,5.16145704,2474.2,2474.0,1.70909664]
[1747507271194,5.16145704,2474.2,2474.0,5.75111613]
[1747507271397,5.16145704,2474.2,2474.1,12.20628958]
[1747507271560,0.48266965,2474.7,2474.1,8.124]
[1747507271761,4.04131084,2474.5,2474.1,8.124]
[1747507272006,4.04131084,2474.5,2474.2,1.38750419]
[1747507272498,4.04146892,2474.4,2474.1,8.124]
[1747507274604,4.04157189,2474.3,2474.1,8.124]
[1747507274779,4.04146892,2474.4,2474.0,1.70909664]
[1747507274979,4.04167554,2474.3,2474.0,0.8188]
[1747507277301,4.04174995,2474.2,2474.0,0.8188]
[1747507277600,4.04187381,2474.1,2473.8,0.821]
[1747507279323,12.1395545,2474.3,2473.8,0.821]
[1747507279478,8.0,2474.2,2473.7,8.101]
[1747507279679,4.04229125,2473.9,2473.7,8.101]
[1747507279993,4.0421277,2474.0,2473.7,9.39821255]
[1747507282216,4.04227432,2473.9,2473.7,9.39821255]
[1747507282388,4.04227432,2473.9,2473.7,8.101]
[1747507283717,4.04212249,2474.0,2473.7,8.101]
[1747507284123,4.0419651,2474.1,2473.7,8.101]
[1747507284903,4.0420408,2474.0,2473.7,8.101]
[1747507286027,4.04223844,2473.9,2473.7,8.101]
[1747507286407,4.04211616,2474.0,2473.7,8.101]
[1747507287628,8.3754,2474.2,2473.7,8.101]
[1747507287794,4.04236397,2473.8,2473.7,8.101]
[1747507287996,4.04265661,2473.7,2473.4,0.7917]
[1747507288196,4.04265661,2473.7,2473.4,3.83109944]
[1747507288728,0.48266965,2474.8,2474.5,4.04111336]
[1747507288892,0.48266965,2474.8,2474.3,0.8292]
[1747507288893,0.48266965,2474.8,2474.7,4.87009384]
[1747507289093,0.48266965,2474.8,2474.7,6.17114418]
[1747507289310,0.48266965,2474.8,2474.7,10.23025034]
[1747507289627,0.48266965,2474.8,2474.7,8.9292]
[1747507289922,4.04047872,2475.0,2474.7,8.9292]
[1747507291399,0.03426479,2475.1,2474.7,0.8292]
[1747507291734,4.04069407,2474.9,2474.8,8.099]